bitfinex-derivatives/quotes_SOLF0:USTF0_20251219
["timestamp","ask_amount","ask_price","bid_price","bid_amount"]
[1766150461719,48.13584397,126.2,126.14,8.01]
[1766150462025,1.42,126.19,126.14,8.01]
[1766150462730,0.05532348,126.18,126.15,0.05096706]
[1766150464539,7.1385,126.15,126.07,14.8024]
[1766150464727,6.64354635,126.16,126.08,7.66]
[1766150464930,46.84,126.15,126.08,7.66]
[1766150465537,53.9783,126.15,126.1,0.05040497]
[1766150465723,0.05881001,126.13,126.1,0.05040497]
[1766150468042,0.05881001,126.13,126.1,7.71040497]
[1766150470728,60.62144635,126.16,126.1,7.71040497]
[1766150471737,0.05600026,126.14,126.1,7.71040497]
[1766150501659,3.06687232,126.15,126.1,7.71040497]
[1766150501863,52.39257206,126.18,126.1,7.71040497]
[1766150502060,52.39257206,126.18,126.1,7.66]
[1766150502560,7.1375,126.17,126.11,7.55]
[1766150502764,7.1375,126.17,126.13,7.60407209]
[1766150503848,0.05465224,126.16,126.13,7.60407209]
[1766150507576,0.00465224,126.16,126.13,7.60407209]
[1766150509868,36.97851534,126.18,126.13,7.60407209]
[1766150511870,0.04321576,126.17,126.13,7.60407209]
[1766150512369,0.00321576,126.17,126.13,7.60407209]
[1766150513668,19.10298782,126.17,126.13,0.05407209]
[1766150517471,7.71,126.16,126.1,7.55]
[1766150517667,4.25257206,126.15,126.1,7.55]
[1766150518568,11.39087206,126.15,126.1,7.55]
[1766150518869,0.05728785,126.14,126.11,0.0605267]
[1766150521472,0.05728785,126.14,126.11,7.6105267]
[1766150521668,7.71,126.18,126.11,7.6105267]
[1766150522071,7.71,126.18,126.12,7.55]
[1766150522473,58.22907206,126.19,126.12,7.55]
[1766150522668,46.84,126.19,126.14,7.60883581]
[1766150523967,1.29584397,126.2,126.14,7.60883581]
[1766150525375,1.29584397,126.2,126.15,5.68]
[1766150530587,1.29584397,126.2,126.16,5.78]
[1766150530788,1.29584397,126.2,126.17,5.83122289]
[1766150532390,12.76832902,126.24,126.17,5.83122289]
[1766150532586,12.76832902,126.24,126.19,4.51098505]
[1766150532787,8.52,126.24,126.19,4.51098505]
[1766150548707,8.52,126.24,126.19,0.05098505]
[1766150549406,8.44,126.22,126.19,0.05098505]
[1766150549709,8.44,126.22,126.15,4.32]
[1766150550104,15.5743,126.22,126.16,4.32]
[1766150550304,8.44,126.22,126.16,4.32]
[1766150550504,8.44,126.24,126.16,4.32]
[1766150550704,0.00098505,126.21,126.19,4.36353234]
[1766150554815,0.00098505,126.21,126.2,4.23]
[1766150555218,7.93,126.26,126.2,4.23]
[1766150556214,7.93,126.26,126.22,0.05465201]
[1766150557017,46.82,126.27,126.22,4.27465201]
[1766150557221,7.93,126.28,126.23,11.3537]
[1766150557523,7.93,126.3,126.23,4.22]
[1766150557820,7.93,126.3,126.25,0.05190619]
[1766150558418,15.0599,126.3,126.25,4.26190619]
[1766150558623,7.93,126.32,126.25,4.26190619]
[1766150563324,7.93,126.32,126.26,4.19]
[1766150563630,7.93,126.32,126.28,0.0557537]
[1766150575132,7.93,126.3,126.25,7.1325]
[1766150575335,7.93,126.3,126.24,4.13]
[1766150576337,0.0557537,126.28,126.26,0.0508954]
[1766150576636,7.93,126.29,126.21,7.1343]
[1766150576934,7.93,126.28,126.21,11.3643]
[1766150577528,0.05233143,126.26,126.23,0.0500569]
[1766150580437,7.93,126.31,126.23,4.2700569]
[1766150580640,7.93,126.31,126.23,4.22]
[1766150581038,7.93,126.31,126.26,11.302]
[1766150581545,0.05431767,126.3,126.27,0.05297899]
[1766150583440,0.00431767,126.3,126.28,7.1309]
[1766150583653,7.93,126.33,126.28,11.2409]
[1766150583938,7.93,126.35,126.28,11.2409]
[1766150584647,7.93,126.35,126.3,0.06003843]
[1766150593863,46.8,126.36,126.31,4.06]
[1766150594353,54.98,126.36,126.31,4.06]
[1766150594856,54.98,126.36,126.3,7.18963843]
[1766150595052,54.98,126.36,126.3,11.24963843]
[1766150595756,8.18,126.35,126.3,0.06003843]
[1766150604756,8.12,126.33,126.26,4.04]
[1766150604959,8.12,126.33,126.25,46.8]
[1766150605166,8.12,126.31,126.24,11.2327]
[1766150605357,8.12,126.31,126.24,4.1]
[1766150605764,0.0541696,126.29,126.26,0.05770749]
[1766150607648,0.0541696,126.29,126.26,7.18970749]
[1766150609259,8.1741696,126.29,126.26,0.05770749]
[1766150611764,0.0541696,126.29,126.26,0.05770749]
[1766150611961,0.0041696,126.29,126.26,4.14770749]
[1766150613463,0.0041696,126.29,126.26,8.38931637]
[1766150613664,0.0041696,126.29,126.26,15.52121637]
[1766150616174,0.0041696,126.29,126.27,7.1312]
[1766150616463,8.12,126.33,126.28,7.1307]
[1766150616668,54.88,126.35,126.28,11.1607]
[1766150616870,8.1,126.34,126.28,11.1607]
[1766150617475,8.1,126.34,126.3,0.05077256]
[1766150621982,12.34160888,126.36,126.3,0.05077256]
[1766150622277,8.1,126.35,126.3,0.05077256]
[1766150622461,8.1,126.35,126.3,7.18047256]
[1766150623373,8.1,126.37,126.3,11.20047256]
[1766150623576,8.1,126.37,126.32,0.0582054]
[1766150624291,8.1,126.37,126.32,4.0782054]
[1766150625691,8.1,126.37,126.32,11.2068054]
[1766150629390,8.1,126.37,126.32,0.0582054]
[1766150629784,4.24160888,126.38,126.29,11.1502]
[1766150629785,8.1,126.35,126.29,11.1502]
[1766150630886,8.1,126.35,126.31,0.05032117]
[1766150630887,0.05683493,126.33,126.31,0.05032117]
[1766150633396,0.05683493,126.33,126.31,7.17942117]
[1766150633598,8.1,126.37,126.31,11.18942117]
[1766150639600,8.1,126.37,126.31,7.17942117]
[1766150639998,8.1,126.37,126.32,11.1283]
[1766150643099,8.1,126.37,126.31,0.05032117]
[1766150643401,8.1,126.35,126.31,0.05032117]
[1766150643600,8.1,126.35,126.28,4.0]
[1766150643998,8.1,126.35,126.3,7.1297]
[1766150644195,8.1,126.35,126.28,4.0]
[1766150644602,0.05902897,126.33,126.3,0.05298128]
[1766150645300,7.67902897,126.33,126.3,0.05298128]
[1766150650003,7.67902897,126.33,126.3,0.00298128]
[1766150653806,0.05902897,126.33,126.3,0.00298128]
[1766150656910,0.05902897,126.33,126.3,15.24419016]
[1766150659205,8.2,126.37,126.32,7.99160888]
[1766150660007,8.2,126.37,126.32,15.12010888]
[1766150660208,0.05377897,126.36,126.33,0.05433746]
[1766150660707,8.25377897,126.36,126.3,10.8398]
[1766150660912,0.05377897,126.36,126.32,3.76]
[1766150661109,0.05377897,126.36,126.33,4.24160888]
[1766150661306,8.2,126.39,126.34,3.76]
[1766150661610,1.22784479,126.43,126.35,12.31160888]
[1766150661817,1.22784479,126.43,126.35,8.07]
[1766150662414,0.05828881,126.4,126.38,0.00367628]
[1766150663117,0.05828881,126.4,126.33,12.31160888]
[1766150663418,8.2,126.39,126.33,12.31160888]
[1766150663616,8.2,126.39,126.33,8.07]
[1766150663915,8.2,126.38,126.3,12.31160888]
[1766150664114,51.00160888,126.39,126.3,12.31160888]
[1766150664115,0.05016969,126.35,126.33,0.05633517]
[1766150666317,0.05016969,126.35,126.3,8.07]
[1766150666616,8.2,126.33,126.27,46.78]
[1766150667315,0.0007002,126.31,126.29,12.36688407]
[1766150667512,8.2,126.35,126.29,8.07]
[1766150667910,13.74597744,126.4,126.3,8.07]
[1766150668115,6.62147744,126.42,126.32,8.07]
[1766150668317,6.62147744,126.42,126.36,0.05649944]
[1766150668318,0.06003329,126.38,126.36,0.05649944]
[1766150670932,8.26003329,126.38,126.31,15.1988]
[1766150671720,8.26003329,126.38,126.33,0.00135311]
[1766150671908,8.26003329,126.38,126.28,164.30004813]
[1766150671909,8.2,126.36,126.28,46.76]
[1766150672106,8.2,126.35,126.27,8.07]
[1766150672631,8.2,126.32,126.25,8.07]
[1766150673025,0.05703643,126.3,126.27,0.05458842]
[1766150678931,7.85703643,126.3,126.27,0.00458842]
[1766150679327,7.85703643,126.3,126.23,16.44904868]
[1766150680230,7.85703643,126.3,126.25,0.05136941]
[1766150683624,0.05703643,126.3,126.25,14.77366941]
[1766150687335,7.85703643,126.3,126.25,7.18366941]
[1766150690833,7.85703643,126.3,126.25,0.05136941]
[1766150693239,7.85703643,126.3,126.21,7.59]
[1766150693431,7.8,126.3,126.21,7.59]
[1766150694237,0.05424209,126.27,126.24,0.05646876]
[1766150699542,0.05424209,126.27,126.24,14.77936876]
[1766150700842,0.00424209,126.27,126.24,14.77936876]
[1766150701040,0.00424209,126.27,126.25,7.59]
[1766150704348,7.8,126.31,126.25,7.59]
[1766150705551,0.05733601,126.29,126.27,0.0568067]
[1766150706747,7.1286,126.33,126.27,15.2482067]
[1766150706748,7.39,126.33,126.27,15.2482067]
[1766150707339,117.47104813,126.37,126.28,15.1909]
[1766150707340,7.39,126.35,126.28,15.1909]
[1766150707538,7.39,126.35,126.28,8.06]
[1766150707743,0.054095,126.33,126.3,0.05831895]
[1766150708049,7.39,126.32,126.25,54.86]
[1766150708745,7.39,126.31,126.25,61.9921]
[1766150708937,0.05393196,126.29,126.27,0.05377442]
[1766150712050,0.05393196,126.29,126.27,0.00377442]
[1766150712740,0.05393196,126.29,126.23,15.1934]
[1766150713553,0.05393196,126.29,126.25,0.05471499]
[1766150714545,0.05393196,126.29,126.25,8.11471499]
[1766150716340,0.00393196,126.29,126.26,8.06]
[1766150716736,7.39,126.34,126.26,8.06]
[1766150716940,7.39,126.34,126.28,15.1907]
[1766150717751,0.05267901,126.32,126.3,0.05174985]
[1766150718747,0.05267901,126.32,126.26,14.6116]
[1766150719643,0.05267901,126.32,126.28,0.05719279]
[1766150720858,7.94267901,126.32,126.28,0.05719279]
[1766150725974,15.07137901,126.32,126.28,0.05719279]
[1766150729377,15.0195,126.31,126.24,7.48]
[1766150730177,0.06055583,126.29,126.26,0.0516377]
[1766150732576,15.08095583,126.29,126.22,7.48]
[1766150732781,15.0204,126.29,126.22,7.48]
[1766150733283,7.89,126.28,126.22,7.48]
[1766150733477,7.89,126.27,126.21,14.6143]
[1766150733677,0.05823879,126.25,126.23,0.05636358]
[1766150734682,7.1301,126.3,126.23,7.62636358]
[1766150735382,14.8301,126.3,126.23,7.62636358]
[1766150735586,14.8301,126.3,126.23,14.75986358]
[1766150735882,0.04994051,126.28,126.23,14.75986358]
[1766150736684,0.04994051,126.28,126.24,18.94431442]
[1766150739983,0.04994051,126.28,126.24,18.9441919]
[1766150740483,0.04994051,126.28,126.25,14.7025]
[1766150744793,65.8501919,126.32,126.26,7.57]
[1766150745793,0.0508763,126.3,126.28,0.04997865]
[1766150746889,0.0008763,126.3,126.28,0.04997865]
[1766150753595,0.0008763,126.3,126.28,7.61997865]
[1766150756092,0.0008763,126.3,126.28,0.04997865]
[1766150757306,7.7,126.38,126.31,7.57]
[1766150757995,7.126,126.37,126.31,7.57]
[1766150758302,0.05127989,126.35,126.33,0.06028221]
[1766150758506,8.92784479,126.43,126.34,11.8113919]
[1766150758797,7.7,126.45,126.38,10.1813919]
[1766150758993,7.7,126.44,126.38,10.1813919]
[1766150759194,7.7,126.44,126.36,17.3075919]
[1766150759503,0.05306355,126.41,126.39,0.0504278]
[1766150759705,1.37690908,126.48,126.39,6.0104278]
[1766150759894,7.7,126.48,126.4,10.2013919]
[1766150760092,7.7,126.48,126.41,5.96]
[1766150760390,7.7,126.48,126.42,10.2013919]
[1766150760791,0.05265336,126.46,126.44,4.29143097]
[1766150761104,52.00172614,126.5,126.45,116.7433]
[1766150761105,2.614e-05,126.5,126.45,116.7433]
[1766150761301,7.7,126.56,126.49,4.2413919]
[1766150761606,7.7,126.56,126.47,5.97]
[1766150761800,7.7,126.56,126.48,4.2413919]
[1766150762006,0.04993247,126.53,126.51,0.05790828]
[1766150762302,7.7,126.56,126.51,0.05790828]
[1766150763203,0.05234623,126.55,126.51,0.05790828]
[1766150763393,7.7,126.54,126.46,10.2413919]
[1766150764103,11.9213919,126.53,126.46,6.0]
[1766150764299,0.06036594,126.51,126.46,6.0]
[1766150764495,0.06036594,126.51,126.48,0.05411601]
[1766150766906,4.30175784,126.51,126.48,0.05411601]
[1766150768008,46.80036594,126.51,126.48,0.05411601]
[1766150771508,21.978,126.5,126.48,0.05411601]
[1766150771709,0.06036594,126.51,126.48,0.05411601]
[1766150779728,4.30175784,126.51,126.48,0.05411601]
[1766150780417,12.45175784,126.51,126.48,0.00411601]
[1766150780717,12.45175784,126.51,126.44,13.2716]
[1766150781633,12.45175784,126.51,126.46,0.05700654]
[1766150786525,8.15,126.5,126.42,17.6239919]
[1766150786732,8.15,126.48,126.42,6.26]
[1766150787732,0.05729425,126.46,126.44,0.04987938]
[1766150788632,0.05729425,126.46,126.4,13.4437]
[1766150789521,0.05729425,126.46,126.42,0.05566623]
[1766150797740,8.29729425,126.46,126.42,0.05566623]
[1766150798129,0.05729425,126.46,126.42,0.05566623]
[1766150801343,0.05729425,126.46,126.42,13.65836623]
[1766150801638,8.24,126.49,126.43,6.42]
[1766150802542,0.05242795,126.47,126.45,0.05978986]
[1766150805538,0.00242795,126.47,126.45,0.05978986]
[1766150815746,0.00242795,126.47,126.45,6.50978986]
[1766150824362,0.00242795,126.47,126.46,6.48]
[1766150838576,8.21,126.55,126.48,6.55]
[1766150839673,8.26349276,126.53,126.5,0.05010012]
[1766150843269,8.26349276,126.53,126.46,13.7304]
[1766150843581,8.21,126.53,126.46,13.7304]
[1766150844579,8.26772602,126.51,126.48,0.05095269]
[1766150848674,8.21,126.55,126.49,6.57]
[1766150849783,8.26710982,126.53,126.47,6.57]
[1766150850688,8.26710982,126.53,126.47,13.6899]
[1766150850879,8.26710982,126.53,126.49,0.05863075]
[1766150866390,8.31,126.52,126.45,13.8008]
[1766150867088,8.31,126.52,126.46,13.8607]
[1766150867487,0.05281582,126.5,126.48,0.05551841]
[1766150872282,8.36281582,126.5,126.45,7.1209]
[1766150872483,8.36281582,126.5,126.45,13.9309]
[1766150873392,8.36281582,126.5,126.46,0.05692705]
[1766150884115,0.05281582,126.5,126.47,6.85]
[1766150885215,7.77,126.55,126.49,6.8]
[1766150886324,0.05721685,126.53,126.51,0.05617834]
[1766150887124,7.82721685,126.53,126.47,53.52]
[1766150887828,7.82721685,126.53,126.47,60.6398]
[1766150888122,7.82721685,126.53,126.49,0.05680554]
[1766150889025,0.05721685,126.53,126.49,0.05680554]
[1766150890518,7.82721685,126.53,126.49,0.05680554]
[1766150894527,7.82721685,126.53,126.45,7.1209]
[1766150894727,7.77,126.51,126.43,65.1800541]
[1766150895630,0.05054651,126.48,126.46,0.05584862]
[1766150900631,7.81,126.53,126.46,14.04654862]
[1766150901034,7.81,126.53,126.47,6.87]
[1766150901219,7.81,126.53,126.47,18.21738356]
[1766150901730,0.05773028,126.51,126.49,0.05085133]
[1766150915042,7.75,126.54,126.49,14.01975133]
[1766150915247,7.75,126.54,126.49,0.05085133]
[1766150915855,0.05921111,126.53,126.49,0.05085133]
[1766150917249,7.80921111,126.53,126.49,0.05085133]
[1766150917752,7.80921111,126.53,126.49,0.00085133]
[1766150919553,0.05921111,126.53,126.49,0.00085133]
[1766150920549,0.05921111,126.53,126.49,7.11975133]
[1766150922669,7.75,126.52,126.49,0.00085133]
[1766150923653,7.75,126.5,126.49,0.00085133]
[1766150924848,7.75,126.49,126.43,46.72]
[1766150925757,0.05533524,126.47,126.45,0.05931223]
[1766150939554,7.75,126.5,126.45,0.05931223]
[1766150940267,7.75,126.5,126.45,6.86931223]
[1766150940458,0.05926252,126.49,126.45,6.86931223]
[1766150941360,0.05926252,126.49,126.45,13.99061223]
[1766150941760,0.05926252,126.49,126.46,6.81]
[1766150945262,7.75,126.52,126.47,6.76]
[1766150946260,0.05368221,126.51,126.48,0.05213273]
[1766150951468,8.25368221,126.51,126.48,0.05213273]
[1766150952669,8.25368221,126.51,126.48,0.00213273]
[1766150960676,0.05368221,126.51,126.48,0.00213273]
[1766150960882,0.05368221,126.51,126.48,6.79213273]
[1766150966693,0.05368221,126.51,126.48,0.00213273]
[1766150969290,8.20368221,126.51,126.48,0.00213273]
[1766150970089,8.20368221,126.51,126.44,53.5]
[1766150971090,8.20368221,126.51,126.46,0.05551716]
[1766150971594,8.15,126.5,126.46,0.05551716]
[1766150997815,8.15,126.5,126.44,11.04845888]
[1766150998717,0.05683471,126.48,126.46,0.06027231]
[1766151018740,4.22845888,126.54,126.47,13.82267054]
[1766151018741,7.54,126.53,126.47,13.82267054]
[1766151019440,7.54,126.53,126.47,6.49]
[1766151019635,7.54,126.53,126.47,13.6101]
[1766151019838,0.0568439,126.51,126.49,0.05780448]
[1766151020833,7.54,126.57,126.5,13.5184]
[1766151021146,7.54,126.57,126.51,6.4]
[1766151021342,7.54,126.57,126.49,6.4]
[1766151021546,7.54,126.55,126.49,6.4]
[1766151021841,0.05396864,126.53,126.51,0.05439039]
[1766151022338,7.59396864,126.53,126.48,7.1192]
[1766151022546,7.59396864,126.53,126.47,6.38]
[1766151023332,7.59396864,126.53,126.49,0.05436222]
[1766151030240,7.59396864,126.53,126.49,0.00436222]
[1766151033648,7.54,126.52,126.44,20.72184572]
[1766151033946,7.54,126.52,126.44,13.4017]
[1766151034539,7.93,126.51,126.44,13.4017]
[1766151034849,7.98817175,126.49,126.46,0.05554333]
[1766151037646,7.98817175,126.49,126.42,21.04587613]
[1766151037846,7.98817175,126.49,126.41,60.26014572]
[1766151038048,7.93,126.49,126.41,60.26014572]
[1766151038653,0.06026758,126.46,126.44,0.05503013]
[1766151039751,7.99026758,126.46,126.41,60.0631]
[1766151040853,7.99026758,126.46,126.4,6.60323041]
[1766151040854,7.99026758,126.46,126.38,8.54208079]
[1766151041045,7.93,126.46,126.38,1.21434361]
[1766151041547,7.93,126.44,126.35,60.38773718]
[1766151041748,7.93,126.44,126.37,12.93323041]
[1766151041948,0.05783682,126.42,126.39,0.05796576]
[1766151043256,7.98783682,126.42,126.39,0.05796576]
[1766151043652,7.98783682,126.42,126.35,53.02]
[1766151043854,7.98783682,126.42,126.33,20.09103041]
[1766151044054,7.93,126.42,126.33,6.36]
[1766151044257,117.39093041,126.44,126.31,21.48463335]
[1766151044258,7.93,126.4,126.31,21.48463335]
[1766151044561,7.1238,126.41,126.31,21.48463335]
[1766151044562,0.05631786,126.37,126.34,0.05693059]
[1766151052766,7.93,126.39,126.34,6.29693059]
[1766151053060,7.93,126.39,126.34,13.42403059]
[1766151053669,0.05935453,126.38,126.34,13.42403059]
[1766151054168,7.1214,126.45,126.35,14.08323041]
[1766151054362,7.1214,126.45,126.36,7.48]
[1766151055279,0.06052085,126.42,126.39,0.05094488]
[1766151056558,7.99052085,126.42,126.39,0.05094488]
[1766151060372,0.06052085,126.42,126.39,0.05094488]
[1766151072777,7.68052085,126.42,126.39,0.00094488]
[1766151073285,7.68052085,126.42,126.33,10.19019]
[1766151073478,7.62,126.42,126.33,10.19019]
[1766151074375,7.6764401,126.39,126.36,0.05345438]
[1766151076377,7.6764401,126.39,126.33,17.31789]
[1766151076884,7.6764401,126.39,126.33,10.19019]
[1766151077582,7.6764401,126.39,126.35,0.05899249]
[1766151079985,7.6764401,126.39,126.33,2.67019]
[1766151080384,7.62,126.38,126.33,0.00019]
[1766151080990,7.62,126.38,126.34,2.83e-05]
[1766151088303,0.0564401,126.39,126.35,7.79]
[1766151088597,7.5064401,126.39,126.34,2.83e-05]
[1766151093603,7.45,126.38,126.3,14.9194]
[1766151094001,7.68,126.36,126.28,61.6805]
[1766151094300,6.60323041,126.37,126.28,61.6805]
[1766151094301,7.68,126.35,126.28,14.9205]
[1766151094801,0.05594002,126.33,126.3,0.05451082]
[1766151095103,7.73594002,126.33,126.3,0.05451082]
[1766151095998,7.73594002,126.33,126.26,18.72118583]
[1766151096199,7.68,126.32,126.26,7.35]
[1766151096998,0.0573404,126.3,126.24,50.99938583]
[1766151097304,0.0573404,126.3,126.25,7.35]
[1766151097506,0.0573404,126.3,126.26,11.59111426]
[1766151097705,7.68,126.33,126.28,4.24111426]
[1766151097898,7.68,126.35,126.28,11.59111426]
[1766151098094,7.68,126.35,126.29,11.59111426]
[1766151098399,7.68,126.35,126.29,18.72131426]
[1766151098809,0.0593538,126.33,126.31,0.05731196]
[1766151099607,7.68,126.37,126.31,11.64842622]
[1766151099905,7.68,126.37,126.32,7.35]
[1766151100601,0.04997691,126.36,126.32,7.35]
[1766151101401,0.04997691,126.36,126.32,11.59111426]
[1766151101802,7.68,126.35,126.31,0.05731196]
[1766151102206,4.24111426,126.34,126.26,46.76]
[1766151102402,7.68,126.33,126.26,46.76]
[1766151103409,0.0501078,126.31,126.28,0.05772923]
[1766151103603,0.0501078,126.31,126.25,14.4822]
[1766151103604,7.7301078,126.31,126.25,7.35]
[1766151104503,7.7301078,126.31,126.27,0.02681037]
[1766151106608,14.8595078,126.31,126.27,0.02681037]
[1766151106808,118.5965,126.3,126.21,22.78]
[1766151107008,4.24111426,126.26,126.17,7.35]
[1766151107209,4.24111426,126.26,126.18,7.35]
[1766151107402,7.1313,126.28,126.19,11.59111426]
[1766151107608,11.37241426,126.28,126.19,11.59111426]
[1766151107914,0.06032698,126.25,126.21,11.59111426]
[1766151109413,0.06032698,126.25,126.17,11.59111426]
[1766151109714,0.05218658,126.22,126.17,11.59111426]
[1766151110015,0.05218658,126.22,126.19,11.59111426]
[1766151111110,0.05218658,126.22,126.19,7.35]
[1766151112512,0.00218658,126.22,126.19,7.35]
[1766151113315,110.922,126.29,126.18,4.24111426]
[1766151113316,4.24111426,126.29,126.21,7.35]
[1766151113910,110.9359,126.27,126.16,8.72865462]
[1766151114115,4.24111426,126.25,126.17,7.35]
[1766151114318,0.05774004,126.22,126.2,0.05180207]
[1766151114509,0.05489851,126.22,126.15,7.35]
[1766151114813,4.24111426,126.2,126.12,11.59111426]
[1766151115327,4.24111426,126.2,126.12,7.35]
[1766151115328,115.24261426,126.2,126.12,7.35]
[1766151115513,0.05460501,126.17,126.12,7.35]
[1766151115916,0.05460501,126.17,126.13,7.35]
[1766151116213,0.00460501,126.17,126.13,7.35]
[1766151117316,0.00460501,126.17,126.14,0.05038451]
[1766151118208,0.00460501,126.17,126.14,0.00038451]
[1766151118610,4.24111426,126.16,126.1,7.35]
[1766151119214,111.0073,126.19,126.1,7.35]
[1766151119215,7.1374,126.17,126.1,7.35]
[1766151119620,0.05537498,126.15,126.1,7.35]
[1766151120421,0.05537498,126.15,126.07,157.9072]
[1766151120422,0.05537498,126.15,126.08,7.35]
[1766151120609,0.0514198,126.13,126.08,7.35]
[1766151121015,0.0514198,126.13,126.05,14.4937]
[1766151121214,0.05274224,126.1,126.05,7.35]
[1766151125828,0.05274224,126.1,126.02,8.17]
[1766151126025,0.05780402,126.07,126.02,8.17]
[1766151126525,0.05780402,126.07,125.97,1.38076061]
[1766151126526,111.1242,126.06,125.97,1.38076061]
[1766151126720,111.1242,126.06,125.95,8.17]
[1766151126721,0.05187977,126.03,125.95,8.17]
[1766151126916,0.05170644,126.0,125.95,8.17]
[1766151127321,0.00170644,126.0,125.96,8.22]
[1766151127630,157.9707,126.05,125.96,8.22]
[1766151127930,46.84,126.05,125.96,8.17]
[1766151128123,157.9711,126.05,125.96,8.17]
[1766151128430,0.05053821,126.02,125.96,8.17]
[1766151129623,0.05053821,126.02,125.93,8.17]
[1766151129820,0.05399957,125.99,125.93,8.17]
[1766151130020,46.89399957,125.99,125.9,15.3222]
[1766151130233,0.05597914,125.96,125.91,8.17]
[1766151130424,7.1457,126.02,125.92,8.17]
[1766151130624,46.86,126.01,125.94,8.17]
[1766151130829,46.86,126.02,125.94,8.17]
[1766151131526,0.05484391,125.99,125.97,0.05597914]
[1766151131915,0.00484391,125.99,125.97,0.05597914]
[1766151133931,0.00484391,125.99,125.93,8.17]
[1766151134134,46.86,125.98,125.89,8.17]
[1766151134933,0.0585564,125.95,125.92,0.05]
[1766151135233,46.88,125.99,125.92,8.22]
[1766151136133,122.54782522,126.03,125.92,8.22]
[1766151136428,46.88,126.02,125.92,8.17]
[1766151137238,0.05141143,125.98,125.96,0.05863935]
[1766151145638,0.05141143,125.98,125.91,15.1714]
[1766151146034,7.19951143,125.98,125.91,8.02]
[1766151146235,0.05141143,125.98,125.91,8.02]
[1766151146828,0.05141143,125.98,125.93,0.05007647]
[1766151147239,111.2193,125.95,125.85,8.02]
[1766151147430,46.9,125.94,125.87,8.02]
[1766151147628,46.9,125.97,125.88,8.02]
[1766151147838,46.9,125.99,125.91,8.02]
[1766151148344,0.05148148,125.96,125.94,0.05029867]
[1766151148941,0.05148148,125.96,125.91,8.02]
[1766151150139,7.20068148,125.96,125.88,15.1731]
[1766151150347,0.05726392,125.93,125.89,8.02]
[1766151150645,54.0482,125.98,125.89,8.02]
[1766151151641,0.05078794,125.95,125.92,0.05943058]
[1766151155841,0.05078794,125.95,125.87,9.0]
[1766151156044,111.1845,125.99,125.87,9.0]
[1766151156245,7.1492,125.96,125.89,9.0]
[1766151156444,111.2003,125.97,125.89,9.0]
[1766151156644,7.1498,125.95,125.89,9.0]
[1766151156843,0.05587056,125.93,125.89,9.0]
[1766151157043,0.05587056,125.93,125.86,9.0]
[1766151157336,0.0601923,125.91,125.86,9.0]
[1766151159653,0.0601923,125.91,125.82,9.0]
[1766151159947,0.05738949,125.88,125.82,9.0]
[1766151160148,0.05738949,125.88,125.82,16.1569]
[1766151160340,46.92,125.92,125.83,9.0]
[1766151160743,54.0716,125.92,125.84,7.1556]
[1766151161056,54.0716,125.92,125.85,9.0]
[1766151161550,0.05525806,125.9,125.87,0.0605163]
[1766151162349,7.20785806,125.9,125.87,0.0605163]
[1766151162651,7.20785806,125.9,125.85,9.0]
[1766151162652,0.05525806,125.9,125.81,9.0]
[1766151162853,111.2521,125.91,125.81,9.0]
[1766151163054,7.1537,125.88,125.81,9.0]
[1766151163750,0.05929623,125.86,125.81,9.0]
[1766151163946,7.1528,125.9,125.82,9.0]
[1766151164139,18.57609712,125.95,125.82,9.0]
[1766151164345,46.92,125.92,125.82,9.0]
[1766151164746,7.1521,125.91,125.83,9.0]
[1766151164947,111.252,125.91,125.83,9.0]
[1766151165146,0.05595282,125.88,125.86,0.00275831]
[1766151165352,0.05595282,125.88,125.8,9.0]
[1766151165548,111.2731,125.89,125.8,9.0]
[1766151165749,111.2785,125.88,125.8,9.0]
[1766151165955,46.92,125.87,125.8,9.0]
[1766151166456,7.20676145,125.85,125.8,9.0]